bitfinex/quotes_SOLUSD_20251118
["timestamp","ask_amount","ask_price","bid_price","bid_amount"]
[1763477024634,0.2,139.24,139.18,4.52]
[1763477024635,10.20772115,139.24,139.18,4.52]
[1763477024923,0.2,139.24,139.22,10.00772115]
[1763477025116,0.2,139.24,139.23,19.79654884]
[1763477025311,0.2,139.24,139.23,20.50654884]
[1763477025517,0.2,139.24,139.2,0.71]
[1763477025730,0.2,139.24,139.19,0.71]
[1763477026042,0.2,139.24,139.18,4.52]
[1763477026200,10.00772115,139.21,139.18,4.52]
[1763477026397,10.00772115,139.19,139.12,0.71]
[1763477026603,10.00772115,139.16,139.11,10.00772115]
[1763477026832,10.00772115,139.16,139.09,4.52]
[1763477027035,18.12096,139.17,139.09,4.52]
[1763477027036,10.00772115,139.15,139.1,19.79654884]
[1763477027244,10.00772115,139.15,139.09,4.52]
[1763477027245,28.12868115,139.15,139.09,14.52772115]
[1763477027522,28.12868115,139.15,139.1,10.00772115]
[1763477027733,28.12868115,139.15,139.09,14.52772115]
[1763477027734,10.00772115,139.14,139.09,14.52772115]
[1763477027908,23.31096,139.18,139.1,10.00772115]
[1763477028114,10.00772115,139.14,139.09,14.52772115]
[1763477028321,10.00772115,139.14,139.09,4.52]
[1763477028497,10.67772115,139.14,139.09,4.52]
[1763477028700,10.00772115,139.12,139.07,10.00772115]
[1763477029037,10.00772115,139.12,139.06,14.52772115]
[1763477029214,10.00772115,139.12,139.07,10.00772115]
[1763477029410,0.67,139.13,139.07,10.00772115]
[1763477029610,18.79096,139.17,139.1,19.79654884]
[1763477029816,10.00772115,139.14,139.08,0.71]
[1763477030004,10.00772115,139.12,139.07,19.79654884]
[1763477030208,10.00772115,139.11,139.06,4.52]
[1763477030636,18.12096,139.11,139.06,4.52]
[1763477031010,4.52,139.15,139.09,10.00772115]
[1763477031206,18.12096,139.12,139.08,10.00772115]
[1763477031614,18.12096,139.12,139.08,0.71]
[1763477031844,18.12096,139.12,139.08,10.00772115]
[1763477032136,5.19,139.15,139.06,14.30882769]
[1763477032137,10.00772115,139.14,139.09,10.71772115]
[1763477032341,10.00772115,139.13,139.06,4.52]
[1763477032634,18.12096,139.15,139.1,19.79654884]
[1763477032938,18.12096,139.15,139.11,10.00772115]
[1763477033236,0.67,139.21,139.13,9.78882769]
[1763477033437,10.00772115,139.19,139.13,19.79654884]
[1763477033642,18.12096,139.19,139.14,10.00772115]
[1763477033848,10.00772115,139.18,139.12,14.52772115]
[1763477034008,10.00772115,139.17,139.12,4.52]
[1763477034210,10.00772115,139.15,139.09,9.78882769]
[1763477034432,10.00772115,139.15,139.09,24.31654884]
[1763477034741,10.00772115,139.15,139.1,10.00772115]
[1763477034940,10.00772115,139.15,139.09,15.01882769]
[1763477034941,18.12096,139.12,139.09,10.71772115]
[1763477035109,18.12096,139.12,139.08,4.52]
[1763477035305,18.12096,139.12,139.09,10.00772115]
[1763477035540,18.12096,139.13,139.08,4.52]
[1763477035735,18.12096,139.13,139.08,14.52772115]
[1763477035936,10.00772115,139.15,139.1,10.00772115]
[1763477036143,18.12096,139.15,139.1,10.00772115]
[1763477036322,9.78882769,139.2,139.11,5.23]
[1763477036323,10.00772115,139.17,139.11,5.23]
[1763477036528,4.52,139.18,139.12,10.00772115]
[1763477036838,10.00772115,139.15,139.11,4.52]
[1763477037034,10.00772115,139.14,139.11,4.52]
[1763477037229,28.12868115,139.15,139.1,10.00772115]
[1763477037432,28.12868115,139.15,139.09,10.71772115]
[1763477037628,22.64096,139.15,139.09,10.00772115]
[1763477037827,10.00772115,139.14,139.09,10.00772115]
[1763477038324,18.12096,139.14,139.1,10.71772115]
[1763477038530,18.12096,139.15,139.1,15.23772115]
[1763477038841,10.00772115,139.14,139.1,4.52]
[1763477039323,14.52772115,139.15,139.1,14.52772115]
[1763477039523,0.67,139.21,139.13,10.00772115]
[1763477039841,10.00772115,139.19,139.14,19.79654884]
[1763477040356,10.00772115,139.19,139.15,0.71]
[1763477040515,10.00772115,139.19,139.13,4.52]
[1763477040516,10.00772115,139.17,139.13,4.52]
[1763477040916,0.67,139.18,139.13,4.52]
[1763477041157,10.00772115,139.14,139.07,5.9420064]
[1763477041343,10.00772115,139.1,139.04,0.71]
[1763477041518,10.00772115,139.07,139.02,5.9420064]
[1763477041712,0.67,139.1,139.03,10.71772115]
[1763477041958,10.00772115,139.04,138.99,0.71]
[1763477042141,10.00772115,139.01,138.96,10.71772115]
[1763477042340,10.00772115,139.01,138.96,0.71]
[1763477042639,10.00772115,138.99,138.94,10.10772115]
[1763477042847,28.12868115,139.0,138.95,10.00772115]
[1763477043053,10.00772115,139.01,138.96,10.00772115]
[1763477043250,28.12868115,139.02,138.97,9.78882769]
[1763477043433,18.12096,139.01,138.97,20.50654884]
[1763477043622,18.12096,139.01,138.96,4.52]
[1763477043623,10.00772115,139.05,139.0,10.00772115]
[1763477043824,0.67,139.12,139.03,19.79654884]
[1763477044042,4.52,139.11,139.05,9.78882769]
[1763477044244,4.52,139.11,139.06,10.00772115]
[1763477044447,10.00772115,139.2,139.08,10.00772115]
[1763477044651,10.00772115,139.16,139.11,10.00772115]
[1763477044957,0.67,139.22,139.13,10.00772115]
[1763477045252,5.19,139.21,139.12,10.49882769]
[1763477045441,10.00772115,139.16,139.12,9.78882769]
[1763477045624,18.12096,139.18,139.12,20.50654884]
[1763477045832,10.00772115,139.16,139.11,4.52]
[1763477046139,10.00772115,139.16,139.11,10.71772115]
[1763477046326,10.00772115,139.18,139.12,10.71772115]
[1763477046527,4.52,139.2,139.14,10.00772115]
[1763477046739,0.67,139.23,139.16,10.00772115]
[1763477046945,10.00772115,139.2,139.16,9.78882769]
[1763477047145,10.00772115,139.19,139.15,14.30882769]
[1763477047334,10.00772115,139.19,139.14,10.71772115]
[1763477047335,10.00772115,139.18,139.14,0.71]
[1763477047529,18.12096,139.18,139.13,4.52]
[1763477047753,10.00772115,139.16,139.11,10.49882769]
[1763477048251,10.00772115,139.14,139.09,0.71]
[1763477048451,10.00772115,139.14,139.1,14.30882769]
[1763477048854,18.12096,139.17,139.11,0.71]
[1763477049171,4.52,139.2,139.07,0.71]
[1763477049172,28.12868115,139.14,139.07,0.71]
[1763477049355,10.00772115,139.12,139.07,10.49882769]
[1763477049550,18.12096,139.14,139.07,10.49882769]
[1763477049853,10.00772115,139.1,139.06,4.52]
[1763477050053,18.12096,139.11,139.06,15.23772115]
[1763477050242,28.12868115,139.11,139.07,0.71]
[1763477050441,4.52,139.16,139.06,4.52]
[1763477050442,10.00772115,139.1,139.06,4.52]
[1763477050644,18.12096,139.12,139.08,10.00772115]
[1763477050841,18.12096,139.15,139.09,19.79654884]
[1763477051049,18.12096,139.15,139.09,24.31654884]
[1763477051050,28.12868115,139.15,139.09,24.31654884]
[1763477051234,10.00772115,139.14,139.09,14.30882769]
[1763477051430,10.00772115,139.12,139.07,5.23]
[1763477051637,10.00772115,139.12,139.08,9.78882769]
[1763477051832,0.67,139.11,139.05,10.00772115]
[1763477052064,10.00772115,139.09,139.05,9.78882769]
[1763477052360,10.00772115,139.06,139.01,5.17]
[1763477052557,18.12096,139.06,139.01,5.17]
[1763477052953,10.00772115,139.05,139.01,4.52]
[1763477053260,18.12096,139.06,138.99,0.65]
[1763477053261,10.00772115,139.04,138.99,0.65]
[1763477053653,10.00772115,139.03,138.99,0.65]
[1763477053840,10.00772115,139.01,138.98,4.52]
[1763477054036,10.00772115,139.01,138.98,5.17]
[1763477054238,10.00772115,139.02,138.98,4.52]
[1763477054433,10.00772115,139.01,138.98,4.52]
[1763477054637,10.00772115,139.0,138.95,14.52772115]
[1763477054862,10.00772115,139.0,138.96,9.78882769]
[1763477055052,18.12096,139.02,138.96,10.43882769]
[1763477055053,10.00772115,139.01,138.96,10.43882769]
[1763477055254,28.12868115,139.01,138.96,20.44654884]
[1763477055456,4.52,139.03,138.98,9.78882769]
[1763477055761,32.64868115,139.03,138.98,9.78882769]
[1763477055942,32.64868115,139.03,138.99,0.65]
[1763477056143,14.52772115,139.03,139.0,9.78882769]
[1763477056362,10.00772115,139.05,139.0,9.78882769]
[1763477056556,28.12868115,139.06,139.02,9.78882769]
[1763477056937,4.52,139.08,139.02,9.78882769]
[1763477056938,10.00772115,139.07,139.03,0.65]
[1763477057136,10.00772115,139.07,139.02,9.78882769]
[1763477057365,0.71,139.13,139.04,9.78882769]
[1763477057565,0.71,139.13,139.03,0.65]
[1763477057566,10.00772115,139.1,139.06,9.78882769]
[1763477057788,4.52,139.14,139.08,9.78882769]
[1763477058063,28.12868115,139.14,139.09,0.65]
[1763477058248,28.12868115,139.14,139.09,10.65772115]
[1763477058570,28.12868115,139.14,139.08,4.52]
[1763477058571,10.00772115,139.12,139.08,4.52]
[1763477058740,9.78882769,139.19,139.08,4.52]
[1763477058741,10.00772115,139.1,139.08,4.52]
[1763477059073,10.00772115,139.1,139.06,5.22]
[1763477059245,10.00772115,139.09,139.06,5.22]
[1763477059441,10.00772115,139.09,139.06,4.52]
[1763477059649,10.00772115,139.1,139.06,4.52]
[1763477059855,10.00772115,139.1,139.06,5.22]
[1763477060257,9.78882769,139.16,138.93,35.98786326]
[1763477060258,0.69,139.17,139.03,4.52]
[1763477060544,0.69,139.17,139.09,10.00772115]
[1763477060545,10.00772115,139.14,139.09,10.00772115]
[1763477060762,10.00772115,139.13,139.07,10.00772115]
[1763477060949,10.00772115,139.13,139.04,10.00772115]
[1763477060950,10.00772115,139.1,139.04,10.00772115]
[1763477061151,10.00772115,139.09,139.04,10.00772115]
[1763477061354,10.00772115,139.08,139.03,10.00772115]
[1763477061687,4.52,139.1,139.04,10.00772115]
[1763477061858,10.00772115,139.09,139.04,10.00772115]
[1763477062857,10.51507431,139.1,139.05,5.99507431]
[1763477063168,10.51507431,139.1,139.04,6.69507431]
[1763477063169,5.99507431,139.09,139.04,6.69507431]
[1763477063359,10.51507431,139.1,139.05,5.99507431]
[1763477063677,5.99507431,139.09,139.02,9.78882769]
[1763477063839,10.51507431,139.1,139.04,5.99507431]
[1763477064043,5.99507431,139.09,139.04,15.783902]
[1763477064365,4.52,139.1,139.05,5.99507431]
[1763477064670,18.12096,139.08,139.04,15.783902]
[1763477064969,4.52,139.1,139.03,9.78882769]
[1763477064970,4.52,139.07,139.03,9.78882769]
[1763477065173,10.51507431,139.07,139.02,9.78882769]
[1763477065354,5.99507431,139.06,139.02,9.78882769]
[1763477065867,5.99507431,139.06,138.99,9.78882769]
[1763477066069,4.52,139.05,139.02,5.99507431]
[1763477066488,10.51507431,139.05,138.99,9.78882769]
[1763477066656,10.51507431,139.05,139.0,5.99507431]
[1763477066859,5.99507431,139.09,139.04,5.99507431]
[1763477067162,0.69,139.13,139.01,0.7]
[1763477067163,4.52,139.08,139.01,22.64096]
[1763477067481,4.52,139.07,139.02,9.78882769]
[1763477067868,4.52,139.07,139.02,15.783902]
[1763477068178,10.51507431,139.07,139.02,15.783902]
[1763477068388,10.51507431,139.07,139.02,9.78882769]
[1763477068563,10.51507431,139.07,139.02,15.783902]
[1763477068769,10.51507431,139.07,139.02,9.78882769]
[1763477069191,4.52,139.07,139.02,9.78882769]
[1763477069370,5.99507431,139.05,139.0,18.12096]
[1763477069584,0.69,139.06,139.0,18.12096]
[1763477069585,6.68507431,139.06,139.01,9.78882769]
[1763477069883,5.99507431,139.05,139.0,9.78882769]
[1763477070090,5.99507431,139.04,138.99,5.99507431]
[1763477070274,5.99507431,139.04,138.97,9.78882769]
[1763477070275,4.52,139.03,138.97,9.78882769]
[1763477070476,22.64096,139.03,138.98,5.99507431]
[1763477071187,28.63603431,139.03,138.98,5.99507431]
[1763477071411,5.99507431,139.0,138.92,0.7]
[1763477071711,18.81096,139.02,138.93,5.99507431]
[1763477071712,10.51507431,138.99,138.93,5.99507431]
[1763477071877,10.51507431,138.99,138.9,4.52]
[1763477071878,5.99507431,138.98,138.9,4.52]
[1763477072061,5.99507431,138.98,138.93,9.78882769]
[1763477072257,24.11603431,138.97,138.93,9.78882769]
[1763477072456,18.12096,138.97,138.93,9.78882769]
[1763477072891,18.12096,138.98,138.93,9.78882769]
[1763477073104,18.12096,138.98,138.91,9.78882769]
[1763477073105,18.12096,138.98,138.92,5.99507431]
[1763477073394,5.99507431,139.0,138.95,15.783902]
[1763477073578,4.52,138.99,138.93,0.7]
[1763477073900,4.52,138.99,138.95,9.78882769]
[1763477074069,4.52,138.99,138.95,15.783902]
[1763477074402,4.52,139.05,138.97,9.78882769]
[1763477074568,5.99507431,139.01,138.92,0.7]
[1763477074766,4.52,139.0,138.95,9.78882769]
[1763477074997,18.12096,138.97,138.86,0.7]
[1763477075169,4.52,138.96,138.88,9.78882769]
[1763477075493,4.52,138.96,138.92,5.99507431]
[1763477075698,11.20507431,138.96,138.89,0.7]
[1763477075995,11.20507431,138.96,138.81,0.1]
[1763477075996,5.99507431,138.92,138.86,5.99507431]
[1763477076196,4.52,138.92,138.88,5.99507431]
[1763477076403,4.52,138.92,138.88,0.7]
[1763477076574,4.52,138.92,138.88,5.99507431]
[1763477076769,5.21,138.92,138.87,9.78882769]
[1763477076998,4.52,138.92,138.87,6.69507431]
[1763477077182,4.52,138.92,138.88,6.69507431]
[1763477077384,22.64096,138.93,138.9,5.99507431]
[1763477077780,6.68507431,138.96,138.91,9.78882769]
[1763477078102,0.69,139.0,138.93,5.99507431]
[1763477078400,5.99507431,139.02,138.96,5.99507431]
[1763477078598,6.68507431,139.02,138.97,5.99507431]
[1763477078807,0.69,139.06,139.01,5.99507431]
[1763477079014,4.52,139.05,139.01,5.99507431]
[1763477080279,4.52,139.05,138.99,10.48882769]
[1763477080481,4.52,139.05,138.96,29.836922]
[1763477080482,4.52,139.05,139.0,5.99507431]
[1763477080694,0.69,139.04,138.97,0.7]
[1763477080887,6.68507431,139.04,138.98,5.99507431]
[1763477081084,18.12096,139.02,138.93,0.7]
[1763477081408,4.52,139.01,138.97,5.99507431]
[1763477081580,5.99507431,139.05,139.0,5.99507431]
[1763477081780,4.52,139.04,138.96,27.90978769]
[1763477082116,5.99507431,139.02,138.96,18.12096]
[1763477082273,0.71,139.03,138.92,0.67]
[1763477082274,5.99507431,139.0,138.92,0.67]
[1763477082478,4.52,138.99,138.94,5.99507431]
[1763477082672,5.23,138.99,138.94,6.66507431]
[1763477083183,10.51507431,138.99,138.92,0.67]
[1763477083391,5.99507431,138.95,138.9,5.99507431]
[1763477083702,4.52,138.94,138.9,5.99507431]
[1763477083888,4.52,138.94,138.88,0.67]
[1763477083889,4.52,138.94,138.89,5.99507431]
[1763477084242,4.52,138.94,138.91,5.99507431]
[1763477084587,6.70507431,138.98,138.93,5.99507431]
[1763477084775,4.52,138.96,138.92,6.66507431]
[1763477084971,4.52,138.96,138.93,5.99507431]
[1763477085213,4.52,138.96,138.93,6.66507431]
[1763477085401,4.52,138.96,138.87,29.84179971]
[1763477085402,6.70507431,138.95,138.9,5.99507431]
[1763477085575,0.71,138.95,138.9,5.99507431]
[1763477085778,18.12096,138.93,138.89,5.99507431]
[1763477086116,4.52,138.92,138.88,5.99507431]
[1763477086283,4.52,138.92,138.85,10.45882769]
[1763477086284,5.99507431,138.91,138.86,5.99507431]
[1763477086487,11.22507431,138.92,138.86,5.99507431]
[1763477086686,10.51507431,138.92,138.87,5.99507431]
[1763477086888,2.0,139.01,138.87,5.99507431]
[1763477086889,0.71,139.01,138.92,9.78882769]
[1763477087098,11.22507431,139.0,138.94,5.99507431]
[1763477087400,5.99507431,138.97,138.92,9.78882769]
[1763477087594,4.52,138.96,138.92,15.783902]
[1763477087797,4.52,138.96,138.93,5.99507431]
[1763477087999,4.52,138.96,138.94,5.99507431]
[1763477088310,4.52,138.96,138.94,0.67]
[1763477088520,4.52,138.96,138.92,9.78882769]
[1763477088521,4.52,138.96,138.92,15.783902]
[1763477088701,4.52,138.96,138.92,9.78882769]
[1763477089010,4.52,138.96,138.91,5.99507431]
[1763477089011,5.99507431,138.95,138.88,0.67]
[1763477089312,5.99507431,138.94,138.88,0.67]
[1763477089614,5.99507431,139.0,138.88,0.67]
[1763477089615,5.99507431,138.99,138.93,5.99507431]
[1763477089822,4.52,138.98,138.91,9.78882769]
[1763477090007,4.52,138.98,138.89,25.3206269]
[1763477090008,4.52,138.98,138.92,0.67]
[1763477090197,4.52,138.98,138.93,5.99507431]
[1763477090387,11.22507431,138.98,138.92,6.66507431]
[1763477090588,5.99507431,138.94,138.87,0.67]
[1763477090797,10.51507431,138.93,138.88,5.99507431]
[1763477091334,18.12096,139.11,138.87,10.45882769]
[1763477091335,5.99507431,138.96,138.9,5.99507431]
[1763477091505,5.99507431,138.96,138.91,5.99507431]
[1763477091506,4.52,138.95,138.91,5.99507431]
[1763477091819,4.52,138.95,138.89,10.45882769]
[1763477092003,10.51507431,138.95,138.9,5.99507431]
[1763477092194,4.52,138.95,138.9,5.99507431]
[1763477092393,5.99507431,138.93,138.86,0.67]
[1763477092620,5.99507431,138.92,138.86,5.99507431]
[1763477092917,4.52,138.91,138.86,0.67]
[1763477093103,4.52,138.91,138.86,6.66507431]
[1763477093503,10.51507431,138.91,138.86,6.66507431]
[1763477093698,5.99507431,138.89,138.85,9.78882769]
[1763477093912,5.99507431,138.89,138.83,5.99507431]
[1763477094105,5.99507431,138.88,138.83,5.99507431]
[1763477094315,5.99507431,138.87,138.82,0.67]
[1763477094488,5.99507431,138.86,138.81,6.09507431]
[1763477094824,5.23,138.88,138.81,6.09507431]
[1763477094825,5.99507431,138.83,138.81,0.1]
[1763477094990,5.99507431,138.84,138.81,0.1]
[1763477095331,36.34709455,138.97,138.83,5.99507431]
[1763477095332,4.52,138.85,138.83,5.99507431]
[1763477095893,4.52,138.85,138.82,5.99507431]
[1763477096200,4.52,138.85,138.82,0.67]
[1763477096417,4.52,138.85,138.81,0.1]
[1763477096593,4.52,138.85,138.81,0.77]
[1763477096926,4.52,138.85,138.82,5.99507431]
[1763477097089,17.58,138.96,138.81,0.77]
[1763477097090,0.71,138.91,138.84,5.99507431]
[1763477097285,4.52,138.9,138.86,5.99507431]
[1763477097489,4.52,138.9,138.84,0.67]
[1763477097720,10.51507431,138.9,138.85,5.99507431]
[1763477097921,5.99507431,138.87,138.81,0.1]
[1763477098104,4.52,138.86,138.81,6.09507431]
[1763477098423,4.52,138.86,138.82,5.99507431]
[1763477098591,4.52,138.86,138.81,0.1]
[1763477098794,11.22507431,138.86,138.81,0.1]
[1763477098988,10.51507431,138.86,138.81,0.1]
[1763477099192,11.22507431,138.86,138.81,6.09507431]
[1763477099393,5.99507431,138.85,138.81,0.1]
[1763477099589,4.52,138.86,138.82,5.99507431]
[1763477099801,18.12096,138.87,138.82,5.99507431]
[1763477099997,4.52,138.86,138.81,0.1]
[1763477100293,42.31686465,139.0,138.81,0.1]
[1763477100294,4.52,138.9,138.86,9.78882769]
[1763477100495,4.52,138.9,138.84,18.12096]
[1763477100711,6.70507431,138.89,138.83,9.78882769]
[1763477100913,4.52,138.9,138.85,5.99507431]
[1763477101225,0.71,138.95,138.89,5.99507431]
[1763477101532,4.52,138.94,138.92,5.99507431]
[1763477101708,15.58,139.09,138.9,0.67]
[1763477101709,5.99507431,139.0,138.94,9.78882769]
[1763477101914,0.71,139.08,138.94,5.99507431]
[1763477101915,4.52,138.99,138.94,5.99507431]
[1763477102220,5.99507431,139.02,138.97,5.99507431]
[1763477102418,4.52,139.01,138.95,5.99507431]
[1763477102731,4.52,139.01,138.98,5.99507431]
[1763477102899,4.52,139.01,138.97,9.78882769]
[1763477103106,4.52,139.01,138.93,18.12096]
[1763477103107,6.70507431,139.0,138.94,9.78882769]
[1763477103534,18.83096,138.99,138.93,5.99507431]
[1763477103716,5.99507431,138.98,138.93,5.99507431]
[1763477104039,4.52,138.97,138.93,5.99507431]
[1763477104206,5.23,138.97,138.92,15.783902]
[1763477104409,5.99507431,138.95,138.89,9.78882769]
[1763477104735,10.51507431,138.97,138.92,5.99507431]
[1763477104938,0.71,138.96,138.9,0.67]
[1763477105137,0.71,138.96,138.9,5.99507431]
[1763477105342,5.23,138.97,138.92,5.99507431]
[1763477105519,4.52,138.97,138.94,5.99507431]
[1763477105718,5.99507431,138.97,138.9,10.45882769]
[1763477105919,4.52,138.96,138.91,5.99507431]
[1763477106312,5.99507431,138.94,138.88,15.783902]
[1763477106814,18.83096,138.95,138.89,5.99507431]
[1763477107142,18.83096,138.95,138.91,5.99507431]
[1763477107143,18.12096,138.95,138.91,5.99507431]
[1763477107318,4.52,138.94,138.91,5.99507431]
[1763477107634,4.52,138.94,138.9,15.783902]
[1763477107837,9.78882769,139.0,138.89,0.67]
[1763477107838,2.0,139.06,138.92,15.783902]
[1763477108019,35.97780196,139.12,138.92,9.78882769]
[1763477108020,5.99507431,138.98,138.92,9.78882769]
[1763477108354,11.78882769,139.05,138.98,9.78882769]
[1763477108355,5.99507431,139.05,138.98,9.78882769]
[1763477108510,10.51507431,139.04,138.99,5.99507431]
[1763477108709,5.23,139.04,139.0,5.99507431]
[1763477108915,6.70507431,139.03,138.95,9.78882769]
[1763477109219,24.11603431,139.01,138.95,15.783902]
[1763477109418,24.11603431,139.01,138.96,5.99507431]
[1763477109621,0.71,139.09,139.0,5.99507431]
[1763477109818,10.51507431,139.08,139.03,5.99507431]
[1763477110022,28.63603431,139.08,139.03,5.99507431]
[1763477110241,6.70507431,139.07,138.99,9.78882769]
[1763477110543,4.52,139.08,139.03,5.99507431]
[1763477110725,4.52,139.08,139.0,0.67]
[1763477110928,5.99507431,139.04,138.97,9.78882769]
[1763477111129,0.71,139.07,139.01,5.99507431]
[1763477111322,0.71,139.07,138.98,0.67]
[1763477111323,0.71,139.1,139.04,5.99507431]
[1763477111542,0.71,139.1,138.98,18.79096]
[1763477111543,5.99507431,139.06,139.0,5.99507431]
[1763477111841,5.99507431,139.05,139.0,5.99507431]
[1763477112019,6.71507431,139.05,138.99,5.99507431]
[1763477112222,4.20206665,139.16,139.03,5.99507431]
[1763477112555,5.99507431,139.06,139.0,0.66]
[1763477112726,5.99507431,139.06,138.99,5.99507431]
[1763477112727,5.99507431,139.05,138.99,5.99507431]
[1763477112910,0.72,139.05,138.99,5.99507431]
[1763477113114,4.52,139.06,139.01,5.99507431]
[1763477113356,4.52,139.08,139.03,5.99507431]
[1763477113650,11.23507431,139.08,139.03,5.99507431]
[1763477113815,24.11603431,139.1,139.05,5.99507431]
[1763477114015,24.83603431,139.1,139.04,6.65507431]
[1763477114222,18.12096,139.08,139.03,5.99507431]
[1763477114422,18.12096,139.1,139.03,0.66]
[1763477114621,0.72,139.16,139.09,5.99507431]
[1763477114823,5.99507431,139.17,139.12,5.99507431]
[1763477115045,5.99507431,139.18,139.13,5.99507431]
[1763477115244,5.99507431,139.18,139.1,0.66]
[1763477115245,0.2,139.19,139.14,6.65507431]
[1763477115623,0.2,139.19,139.14,16.443902]
[1763477115835,0.2,139.19,139.14,34.564862]
[1763477116029,0.2,139.19,139.18,15.783902]
[1763477116242,0.2,139.24,139.18,15.783902]
[1763477116442,0.2,139.24,139.19,5.99507431]
[1763477116743,0.2,139.24,139.17,18.78096]
[1763477116744,5.99507431,139.23,139.17,5.99507431]
[1763477116930,6.71507431,139.23,139.18,5.99507431]
[1763477117229,6.71507431,139.23,139.19,5.99507431]
[1763477117230,0.72,139.23,139.19,5.99507431]
[1763477117423,6.19507431,139.24,139.18,5.99507431]
[1763477117625,6.19507431,139.24,139.21,5.99507431]
[1763477117626,0.2,139.24,139.21,5.99507431]
[1763477117949,0.2,139.24,139.23,15.783902]
[1763477118161,4.72,139.32,139.29,5.99507431]
[1763477118451,0.2,139.32,139.29,5.99507431]
[1763477118611,0.2,139.32,139.28,5.99507431]
[1763477118817,0.69,139.31,139.23,18.12096]
[1763477119015,0.2,139.32,139.26,5.99507431]
[1763477119016,6.88507431,139.32,139.26,5.99507431]
[1763477119255,6.88507431,139.32,139.24,0.7]
[1763477119256,0.2,139.32,139.28,5.99507431]
[1763477119429,0.2,139.32,139.29,0.7]
[1763477119751,0.2,139.32,139.31,5.99507431]
[1763477120049,0.2,139.35,139.32,9.78882769]
[1763477120239,0.2,139.35,139.34,5.99507431]
[1763477120448,0.2,139.35,139.34,9.78882769]
[1763477120748,0.2,139.35,139.34,5.99507431]
[1763477120949,0.2,139.35,139.34,6.62507431]
[1763477121524,0.2,139.35,139.32,18.12096]
[1763477121775,0.2,139.35,139.34,5.99507431]
[1763477121954,0.2,139.35,139.33,10.41882769]
[1763477122260,0.2,139.35,139.34,5.99507431]
[1763477122441,0.69,139.45,139.37,18.12096]
[1763477122641,0.69,139.45,139.4,5.99507431]
[1763477122843,0.69,139.45,139.41,5.99507431]
[1763477123046,24.11603431,139.43,139.35,4.5]
[1763477123350,5.99507431,139.44,139.37,9.78882769]
[1763477123527,5.99507431,139.41,139.3,0.43]
[1763477123725,5.99507431,139.41,139.35,5.99507431]
[1763477123957,5.99507431,139.41,139.32,27.90978769]
[1763477123958,18.81096,139.4,139.36,5.99507431]
[1763477124173,0.69,139.4,139.32,27.90978769]
[1763477124320,0.69,139.4,139.36,5.99507431]
[1763477124524,0.69,139.4,139.32,28.33978769]
[1763477124827,0.69,139.41,139.37,9.97330319]
[1763477125052,4.5,139.42,139.38,9.97330319]
[1763477125221,0.69,139.41,139.37,9.97330319]
[1763477125421,10.66330319,139.41,139.34,9.78882769]
[1763477125619,10.66330319,139.41,139.38,9.97330319]
[1763477125620,0.69,139.41,139.38,9.97330319]
[1763477125847,0.69,139.41,139.35,9.78882769]
[1763477126047,0.69,139.41,139.38,9.97330319]
[1763477126224,0.69,139.41,139.34,0.43]
[1763477126420,4.5,139.46,139.39,9.97330319]
[1763477126630,9.97330319,139.44,139.36,9.78882769]
[1763477126948,0.69,139.45,139.41,9.97330319]
[1763477127246,0.69,139.45,139.35,22.62096]
[1763477127247,9.97330319,139.43,139.36,18.12096]
[1763477127457,9.97330319,139.4,139.32,4.5]
[1763477127625,9.97330319,139.35,139.29,9.97330319]
[1763477127950,9.97330319,139.37,139.25,4.5]
[1763477128151,0.69,139.38,139.32,9.97330319]
[1763477128357,22.62096,139.39,139.33,9.97330319]
[1763477128358,0.69,139.37,139.33,9.97330319]
[1763477128855,4.5,139.39,139.35,9.97330319]
[1763477129058,0.69,139.38,139.32,18.12096]
[1763477129298,0.69,139.38,139.34,9.97330319]
[1763477129559,4.5,139.39,139.37,9.97330319]
[1763477129726,0.69,139.41,139.38,9.97330319]